fUST/lending_fUST_20240912
["ID","MTS","AMOUNT","RATE_DAILY","PERIOD"]
[337798668,1726123851650,-500.0,0.00019452,2]
[337798669,1726123851660,-500.0,0.00019452,2]
[337798670,1726123851670,-4848.47,0.00019452,2]
[337798671,1726123851679,-879.2,0.00019452,2]
[337798672,1726123851690,-218.409079,0.00019452,2]
[337798673,1726123851700,-500.0,0.00019452,2]
[337798674,1726123851711,-613.74,0.00019452,2]
[337798675,1726123851722,-218.409079,0.00019452,2]
[337798676,1726123851731,-494.83845827,0.00019452,2]
[337798677,1726123851742,-151.0,0.00019452,2]
[337798678,1726123851753,-500.0,0.00019452,2]
[337798679,1726123851762,-500.0,0.00019452,2]
[337798680,1726123851773,-877.77,0.00019452,2]
[337798681,1726123851782,-561.4,0.00019452,2]
[337798682,1726123851790,-602.7,0.00019452,2]
[337798683,1726123851800,-515.82,0.00019452,2]
[337798684,1726123851809,-587.0,0.00019618,2]
[337798685,1726123851819,-151.0,0.00019726,2]
[337798686,1726123851828,-151.0,0.00019726,2]
[337798687,1726123851839,-534.8,0.00019726,2]
[337798688,1726123851849,-507.04224015,0.00019726,2]
[337798689,1726123851858,-909.14,0.00019726,2]
[337798690,1726123851869,-637.82,0.00019726,2]
[337798691,1726123851879,-500.0,0.00019726,2]
[337798692,1726123851889,-1548.21,0.00019726,2]
[337798693,1726123851899,-151.0,0.00019726,2]
[337798694,1726123851910,-960.5,0.00019726,2]
[337798695,1726123851922,-608.64,0.00019726,2]
[337798696,1726123851933,-269.47130188,0.00019726,2]
[337798697,1726123851943,-688.31,0.00019726,2]
[337798698,1726123851953,-500.0,0.00019726,2]
[337798699,1726123851963,-500.0,0.00019726,2]
[337798700,1726123851972,-843.58,0.00019726,2]
[337798701,1726123851981,-500.0,0.00019726,2]
[337798702,1726123851994,-500.0,0.00019726,2]
[337798703,1726123852003,-500.0,0.00019726,2]
[337798704,1726123852013,-500.0,0.00019726,2]
[337798705,1726123852023,-506.79,0.00019726,2]
[337798706,1726123852035,-500.0,0.00019726,2]
[337798707,1726123852047,-500.0,0.00019726,2]
[337798708,1726123852058,-500.0,0.00019726,2]
[337798709,1726123852071,-705.14,0.00019726,2]
[337798710,1726123852081,-761.85,0.00019726,2]
[337798711,1726123852090,-844.39,0.00019726,2]
[337798712,1726123852100,-1153.8,0.00019726,2]
[337798713,1726123852110,-1280.53,0.00019726,2]
[337798714,1726123852120,-563.5,0.00019726,2]
[337798715,1726123852130,-1201.71,0.00019726,2]
[337798716,1726123852139,-509.77,0.00019726,2]
[337798717,1726123852149,-500.0,0.00019726,2]
[337798718,1726123852159,-659.94,0.00019726,2]
[337798719,1726123852168,-500.0,0.00019726,2]
[337798720,1726123852179,-500.0,0.00019726,2]
[337798721,1726123852188,-500.0,0.00019726,2]
[337798722,1726123852199,-500.0,0.00019726,2]
[337798723,1726123852210,-500.0,0.00019726,2]
[337798724,1726123852221,-563.24,0.00019726,2]
[337798725,1726123852231,-1009.51,0.00019726,2]
[337798726,1726123852241,-1316.2,0.00019726,2]
[337798727,1726123852251,-1002.22,0.00019726,2]
[337798728,1726123852261,-1498.5,0.00019726,2]
[337798729,1726123852271,-500.0,0.00019726,2]
[337798730,1726123852280,-694.31,0.00019726,2]
[337798731,1726123852289,-1214.16,0.00019726,2]
[337798732,1726123852299,-557.62,0.00019726,2]
[337798733,1726123852308,-540.42,0.00019726,2]
[337798734,1726123852318,-1797.38,0.00019726,2]
[337798735,1726123852327,-500.0,0.00019726,2]
[337798736,1726123852338,-773.65,0.00019726,2]
[337798737,1726123852348,-1331.18,0.00019726,2]
[337798738,1726123852358,-1255.34,0.00019726,2]
[337798739,1726123852368,-531.79,0.00019726,2]
[337798740,1726123852379,-636.83,0.00019726,2]
[337798741,1726123852389,-500.0,0.00019726,2]
[337798742,1726123852400,-865.46,0.00019726,2]
[337798743,1726123852410,-725.62,0.00019726,2]
[337798744,1726123852419,-500.0,0.00019726,2]
[337798745,1726123852429,-605.23,0.00019726,2]
[337798746,1726123852438,-500.0,0.00019726,2]
[337798747,1726123852449,-153.575323,0.00019726,2]
[337798748,1726123852459,-988.25,0.00019726,2]
[337798749,1726123852469,-572.99250057,0.00019726,2]
[337798750,1726123852478,-500.0,0.00019726,2]
[337798751,1726123852488,-375.756997,0.00019726,2]
[337798752,1726123852497,-375.756997,0.00019726,2]
[337798753,1726123852506,-818.89,0.00019726,2]
[337798754,1726123852517,-151.0,0.00019726,2]
[337798755,1726123852528,-1126.63,0.00019726,2]
[337798756,1726123852538,-500.0,0.00019726,2]
[337798757,1726123852547,-500.0,0.00019726,2]
[337798758,1726123852556,-977.81,0.00019726,2]
[337798759,1726123852565,-500.0,0.00019726,2]
[337798760,1726123852575,-500.0,0.00019726,2]
[337798761,1726123852585,-500.0,0.00019726,2]
[337798762,1726123852595,-1576.0,0.00019726,2]
[337798763,1726123852604,-563.69,0.00019726,2]
[337798764,1726123852614,-500.0,0.00019726,2]
[337798765,1726123852624,-752.1,0.00019726,2]
[337798766,1726123852634,-500.0,0.00019726,2]
[337798767,1726123852643,-151.0,0.00019726,2]
[337798768,1726123852653,-500.0,0.00019726,2]
[337798769,1726123852663,-199.646895,0.00019726,2]
[337798770,1726123852673,-500.0,0.00019726,2]
[337798771,1726123852682,-500.0,0.00019726,2]
[337798772,1726123852692,-500.0,0.00019726,2]
[337798773,1726123852702,-895.59,0.00019726,2]
[337798774,1726123852712,-500.0,0.00019726,2]
[337798775,1726123852722,-691.07,0.00019726,2]
[337798776,1726123852732,-786.8,0.00019726,2]
[337798777,1726123852742,-975.76,0.00019726,2]
[337798778,1726123852753,-500.0,0.00019726,2]
[337798779,1726123852763,-500.0,0.00019726,2]
[337798780,1726123852774,-806.09,0.00019726,2]
[337798781,1726123852784,-423.09098,0.00019726,2]
[337798782,1726123852795,-729.84,0.00019726,2]
[337798783,1726123852806,-770.21,0.00019726,2]
[337798784,1726123852816,-500.0,0.00019726,2]
[337798785,1726123852827,-8674.94,0.00019726,2]
[337798786,1726123852837,-848.3,0.00019726,2]
[337798787,1726123852848,-423.09098,0.00019726,2]
[337798788,1726123852857,-500.0,0.00019726,2]
[337798789,1726123852867,-442.56,0.00019726,2]
[337798790,1726123852876,-866.1,0.00019726,2]
[337798791,1726123852887,-689.98,0.00019726,2]
[337798792,1726123852897,-276.254388,0.00019726,2]
[337798793,1726123852907,-151.0,0.00019726,2]
[337798794,1726123852917,-631.72,0.00019726,2]
[337798795,1726123852927,-500.0,0.00019726,2]
[337798796,1726123852936,-276.254388,0.00019726,2]
[337798797,1726123852945,-582.27,0.00019726,2]
[337798798,1726123852956,-560.54,0.00019726,2]
[337798799,1726123852966,-500.0,0.00019726,2]
[337798800,1726123852975,-203.698846,0.00019726,2]
[337798801,1726123852985,-1022.59,0.00019726,2]
[337798802,1726123852998,-10023.64,0.00019726,2]
[337798803,1726123853008,-1077.78,0.00019726,2]
[337798804,1726123853018,-500.0,0.00019726,2]
[337798805,1726123853028,-923.85,0.00019726,2]
[337798806,1726123853039,-573.18,0.00019726,2]
[337798807,1726123853049,-239.946413,0.00019726,2]
[337798808,1726123853058,-8715.78,0.00019726,2]
[337798809,1726123853069,-602.78,0.00019726,2]
[337798810,1726123853079,-237.46782116,0.00019726,2]
[337798811,1726123853089,-1098.43,0.00019726,2]
[337798812,1726123853100,-500.0,0.00019726,2]
[337798813,1726123853110,-11078.48,0.00019726,2]
[337798814,1726123853120,-545.11,0.00019726,2]
[337798815,1726123853131,-764.18,0.00019726,2]
[337798816,1726123853143,-922.67,0.00019726,2]
[337798817,1726123853155,-500.0,0.00019726,2]
[337798818,1726123853164,-1502.966318,0.00019726,2]
[337798819,1726123853174,-1502.966318,0.00019726,2]
[337798820,1726123853183,-500.0,0.00019726,2]
[337798821,1726123853193,-4848.47,0.00019726,2]
[337798822,1726123853202,-879.2,0.00019726,2]
[337798823,1726123853212,-500.0,0.00019726,2]
[337798824,1726123853222,-613.74,0.00019726,2]
[337798825,1726123853234,-335.499392,0.00019726,2]
[337798826,1726123853245,-335.499392,0.00019726,2]
[337798827,1726123853256,-500.0,0.00019726,2]
[337798828,1726123853268,-500.0,0.00019726,2]
[337798829,1726123853278,-877.77,0.00019726,2]
[337798830,1726123853287,-561.4,0.00019726,2]
[337798831,1726123853297,-602.7,0.00019726,2]
[337798832,1726123853307,-515.82,0.00019726,2]
[337798833,1726123853318,-172.01158329,0.00019742,2]
[337798834,1726123853328,-6305.130852,0.00019863,2]
[337798835,1726123853339,-587.0,0.00019876,2]
[337798836,1726123853350,-866.81374368,0.0001988,2]
[337798837,1726123853361,-29813.39440193,0.000199,2]
[337798838,1726123853370,-220364.40492624,0.0001999,2]
[337798839,1726123853380,-651.504644,0.0001999,2]
[337798840,1726123853389,-651.504644,0.0001999,2]
[337798841,1726123853398,-151.0,0.0001999,2]
[337798842,1726123853408,-257.558256,0.0001999,2]
[337798843,1726123853418,-151.0,0.0001999,2]
[337798844,1726123853428,-151.0,0.0001999,2]
[337798845,1726123853437,-181.256569,0.0001999,2]
[337798846,1726123853447,-181.256569,0.0001999,2]
[337798847,1726123853456,-151.0,0.0001999,2]
[337798848,1726123853466,-151.0,0.0001999,2]
[337798849,1726123853475,-151.0,0.0001999,2]
[337798850,1726123853485,-2064.53816,0.0001999,2]
[337798851,1726123853495,-2064.53816,0.0001999,2]
[337798852,1726123853506,-218.409079,0.0001999,2]
[337798853,1726123853516,-218.409079,0.0001999,2]
[337798854,1726123853527,-151.0,0.0001999,2]
[337798855,1726123853536,-21167.82310804,0.0002,2]
[337798856,1726123853545,-1700.0,0.0002,2]
[337798857,1726123853555,-151.0,0.0002,2]
[337798858,1726123853565,-15984.07560405,0.0002,2]
[337798859,1726123853575,-3450.91090806,0.0002,2]
[337798860,1726123853585,-10088.14779636,0.0002,2]
[337798861,1726123853595,-4305.6605979,0.0002,2]
[337798862,1726123853605,-145016.9084984,0.0002,2]
[337798863,1726123853615,-347.99371702,0.0002,2]
[337798864,1726123853624,-181.80138408,0.0002,2]
[337798865,1726123853634,-151.0,0.0002,2]
[337798866,1726123853643,-151.0,0.0002,2]
[337798867,1726123853653,-534.8,0.0002,2]
[337798868,1726123853662,-909.14,0.0002,2]
[337798869,1726123853715,-637.82,0.0002,2]
[337798870,1726123853724,-500.0,0.0002,2]
[337798871,1726123853734,-1548.21,0.0002,2]
[337798872,1726123853745,-151.0,0.0002,2]
[337798873,1726123853754,-960.5,0.0002,2]
[337798874,1726123853764,-608.64,0.0002,2]
[337798875,1726123853775,-688.31,0.0002,2]
[337798876,1726123853785,-500.0,0.0002,2]
[337798877,1726123853795,-500.0,0.0002,2]
[337798878,1726123853804,-843.58,0.0002,2]
[337798879,1726123853814,-500.0,0.0002,2]
[337798880,1726123853824,-500.0,0.0002,2]
[337798881,1726123853833,-500.0,0.0002,2]
[337798882,1726123853842,-500.0,0.0002,2]
[337798883,1726123853852,-506.79,0.0002,2]
[337798884,1726123853862,-500.0,0.0002,2]
[337798885,1726123853871,-500.0,0.0002,2]
[337798886,1726123853880,-500.0,0.0002,2]
[337798887,1726123853893,-705.14,0.0002,2]
[337798888,1726123853902,-761.85,0.0002,2]
[337798889,1726123853912,-844.39,0.0002,2]
[337798890,1726123853922,-1153.8,0.0002,2]
[337798891,1726123853931,-1280.53,0.0002,2]
[337798892,1726123853942,-563.5,0.0002,2]
[337798893,1726123853952,-1201.71,0.0002,2]
[337798894,1726123853962,-509.77,0.0002,2]
[337798895,1726123853971,-500.0,0.0002,2]
[337798896,1726123853981,-659.94,0.0002,2]
[337798897,1726123853994,-500.0,0.0002,2]
[337798898,1726123854003,-500.0,0.0002,2]
[337798899,1726123854013,-151.0,0.0002,2]
[337798900,1726123854022,-500.0,0.0002,2]
[337798901,1726123854032,-500.0,0.0002,2]
[337798902,1726123854042,-182.4,0.0002,2]
[337798903,1726123854052,-563.24,0.0002,2]
[337798904,1726123854062,-1009.51,0.0002,2]
[337798905,1726123854075,-1316.2,0.0002,2]
[337798906,1726123854086,-151.0,0.0002,2]
[337798907,1726123854098,-1002.22,0.0002,2]
[337798908,1726123854109,-1498.5,0.0002,2]
[337798909,1726123854119,-500.0,0.0002,2]
[337798910,1726123854130,-694.31,0.0002,2]
[337798911,1726123854142,-1214.16,0.0002,2]
[337798912,1726123854152,-557.62,0.0002,2]
[337798913,1726123854163,-540.42,0.0002,2]
[337798914,1726123854172,-151.0,0.0002,2]
[337798915,1726123854182,-1797.38,0.0002,2]
[337798916,1726123854192,-500.0,0.0002,2]
[337798917,1726123854203,-773.65,0.0002,2]
[337798918,1726123854212,-1331.18,0.0002,2]
[337798919,1726123854222,-1255.34,0.0002,2]
[337798920,1726123854233,-531.79,0.0002,2]
[337798921,1726123854243,-636.83,0.0002,2]
[337798922,1726123854254,-500.0,0.0002,2]
[337798923,1726123854264,-865.46,0.0002,2]
[337798924,1726123854275,-725.62,0.0002,2]
[337798925,1726123854287,-500.0,0.0002,2]
[337798926,1726123854296,-605.23,0.0002,2]
[337798927,1726123854306,-500.0,0.0002,2]
[337798928,1726123854315,-988.25,0.0002,2]
[337798929,1726123854326,-151.0,0.0002,2]
[337798930,1726123854336,-500.0,0.0002,2]
[337798931,1726123854347,-375.756997,0.0002,2]
[337798932,1726123854358,-375.756997,0.0002,2]
[337798933,1726123854367,-818.89,0.0002,2]
[337798934,1726123854376,-151.0,0.0002,2]
[337798935,1726123854386,-151.0,0.0002,2]
[337798936,1726123854395,-1126.63,0.0002,2]
[337798937,1726123854405,-500.0,0.0002,2]
[337798938,1726123854414,-500.0,0.0002,2]
[337798939,1726123854424,-977.81,0.0002,2]
[337798940,1726123854434,-500.0,0.0002,2]
[337798941,1726123854444,-500.0,0.0002,2]
[337798942,1726123854453,-500.0,0.0002,2]
[337798943,1726123854462,-1576.0,0.0002,2]
[337798944,1726123854471,-563.69,0.0002,2]
[337798945,1726123854480,-500.0,0.0002,2]
[337798946,1726123854490,-752.1,0.0002,2]
[337798947,1726123854499,-500.0,0.0002,2]
[337798948,1726123854509,-151.0,0.0002,2]
[337798949,1726123854519,-500.0,0.0002,2]
[337798950,1726123854529,-500.0,0.0002,2]
[337798951,1726123854539,-500.0,0.0002,2]
[337798952,1726123854548,-500.0,0.0002,2]
[337798953,1726123854558,-895.59,0.0002,2]
[337798954,1726123854567,-500.0,0.0002,2]
[337798955,1726123854577,-691.07,0.0002,2]
[337798956,1726123854586,-786.8,0.0002,2]
[337798957,1726123854595,-975.76,0.0002,2]
[337798958,1726123854605,-278.81930678,0.0002,2]
[337798959,1726123854614,-500.0,0.0002,2]
[337798960,1726123854624,-806.09,0.0002,2]
[337798961,1726123854634,-423.09098,0.0002,2]
[337798962,1726123854644,-729.84,0.0002,2]
[337798963,1726123854653,-770.21,0.0002,2]
[337798964,1726123854662,-500.0,0.0002,2]
[337798965,1726123854672,-8674.94,0.0002,2]
[337798966,1726123854681,-848.3,0.0002,2]
[337798967,1726123854691,-423.09098,0.0002,2]
[337798968,1726123854700,-500.0,0.0002,2]
[337798969,1726123854710,-866.1,0.0002,2]
[337798970,1726123854720,-689.98,0.0002,2]
[337798971,1726123854730,-276.254388,0.0002,2]
[337798972,1726123854740,-631.72,0.0002,2]
[337798973,1726123854749,-151.0,0.0002,2]
[337798974,1726123854758,-500.0,0.0002,2]
[337798975,1726123854768,-276.254388,0.0002,2]
[337798976,1726123854779,-582.27,0.0002,2]
[337798977,1726123854789,-560.54,0.0002,2]
[337798978,1726123854799,-500.0,0.0002,2]
[337798979,1726123854808,-1022.59,0.0002,2]
[337798980,1726123854818,-10023.64,0.0002,2]
[337798981,1726123854827,-1077.78,0.0002,2]
[337798982,1726123854836,-470.731648,0.0002,2]
[337798983,1726123854846,-500.0,0.0002,2]
[337798984,1726123854856,-923.85,0.0002,2]
[337798985,1726123854866,-573.18,0.0002,2]
[337798986,1726123854877,-8715.78,0.0002,2]
[337798987,1726123854887,-602.78,0.0002,2]
[337798988,1726123854897,-1098.43,0.0002,2]
[337798989,1726123854906,-500.0,0.0002,2]
[337798990,1726123854917,-2064.53816,0.0002,2]
[337798991,1726123854928,-11078.48,0.0002,2]
[337798992,1726123854938,-545.11,0.0002,2]
[337798993,1726123854950,-764.18,0.0002,2]
[337798994,1726123854960,-922.67,0.0002,2]
[337798995,1726123854970,-2064.53816,0.0002,2]
[337798996,1726123854980,-500.0,0.0002,2]
[337798997,1726123854992,-1502.966318,0.0002,2]
[337798998,1726123855003,-1502.966318,0.0002,2]
[337798999,1726123855015,-500.0,0.0002,2]
[337799000,1726123855025,-4848.47,0.0002,2]
[337799001,1726123855037,-879.2,0.0002,2]
[337799002,1726123855048,-218.409079,0.0002,2]
[337799003,1726123855060,-500.0,0.0002,2]
[337799004,1726123855071,-613.74,0.0002,2]
[337799005,1726123855081,-218.409079,0.0002,2]
[337799006,1726123855090,-335.499392,0.0002,2]
[337799007,1726123855100,-335.499392,0.0002,2]
[337799008,1726123855111,-151.0,0.0002,2]
[337799009,1726123855121,-500.0,0.0002,2]
[337799010,1726123855131,-500.0,0.0002,2]
[337799011,1726123855141,-877.77,0.0002,2]
[337799012,1726123855150,-561.4,0.0002,2]
[337799013,1726123855159,-602.7,0.0002,2]
[337799014,1726123855168,-515.82,0.0002,2]
[337799015,1726123855177,-250.16704491,0.00020273,2]
[337799016,1726123855188,-534.8,0.00020273,2]
[337799017,1726123855198,-909.14,0.00020273,2]
[337799018,1726123855207,-637.82,0.00020273,2]
[337799019,1726123855217,-449.72056272,0.00020273,2]
[337799020,1726123855226,-1548.21,0.00020273,2]
[337799021,1726123855236,-151.0,0.00020273,2]
[337799022,1726123855246,-960.5,0.00020273,2]
[337799023,1726123855255,-608.64,0.00020273,2]
[337799024,1726123855265,-688.31,0.00020273,2]
[337799025,1726123855278,-500.0,0.00020273,2]
[337799026,1726123855288,-500.0,0.00020273,2]
[337799027,1726123855298,-843.58,0.00020273,2]
[337799028,1726123855309,-500.0,0.00020273,2]
[337799029,1726123855320,-500.0,0.00020273,2]
[337799030,1726123855331,-500.0,0.00020273,2]
[337799031,1726123855342,-500.0,0.00020273,2]
[337799032,1726123855353,-506.79,0.00020273,2]
[337799033,1726123855364,-500.0,0.00020273,2]
[337799034,1726123855374,-500.0,0.00020273,2]
[337799035,1726123855384,-500.0,0.00020273,2]
[337799036,1726123855394,-705.14,0.00020273,2]
[337799037,1726123855404,-761.85,0.00020273,2]
[337799038,1726123855414,-844.39,0.00020273,2]
[337799039,1726123855423,-1153.8,0.00020273,2]
[337799040,1726123855433,-1280.53,0.00020273,2]
[337799041,1726123855444,-563.5,0.00020273,2]
[337799042,1726123855454,-651.504644,0.00020273,2]
[337799043,1726123855465,-1201.71,0.00020273,2]
[337799044,1726123855475,-651.504644,0.00020273,2]
[337799045,1726123855487,-509.77,0.00020273,2]
[337799046,1726123855496,-500.0,0.00020273,2]
[337799047,1726123855506,-659.94,0.00020273,2]
[337799048,1726123855518,-500.0,0.00020273,2]
[337799049,1726123855528,-500.0,0.00020273,2]
[337799050,1726123855538,-500.0,0.00020273,2]
[337799051,1726123855547,-500.0,0.00020273,2]
[337799052,1726123855557,-563.24,0.00020273,2]
[337799053,1726123855566,-1009.51,0.00020273,2]
[337799054,1726123855576,-1316.2,0.00020273,2]
[337799055,1726123855585,-1002.22,0.00020273,2]
[337799056,1726123855596,-1498.5,0.00020273,2]
[337799057,1726123855606,-500.0,0.00020273,2]
[337799058,1726123855615,-694.31,0.00020273,2]
[337799059,1726123855624,-1214.16,0.00020273,2]
[337799060,1726123855634,-557.62,0.00020273,2]
[337799061,1726123855643,-540.42,0.00020273,2]
[337799062,1726123855653,-1797.38,0.00020273,2]
[337799063,1726123855662,-500.0,0.00020273,2]
[337799064,1726123855672,-773.65,0.00020273,2]
[337799065,1726123855682,-1331.18,0.00020273,2]
[337799066,1726123855692,-1255.34,0.00020273,2]
[337799067,1726123855702,-531.79,0.00020273,2]
[337799068,1726123855712,-181.256569,0.00020273,2]
[337799069,1726123855722,-181.256569,0.00020273,2]
[337799070,1726123855732,-636.83,0.00020273,2]
[337799071,1726123855741,-500.0,0.00020273,2]
[337799072,1726123855751,-865.46,0.00020273,2]
[337799073,1726123855761,-725.62,0.00020273,2]
[337799074,1726123855770,-500.0,0.00020273,2]
[337799075,1726123855780,-605.23,0.00020273,2]
[337799076,1726123855790,-500.0,0.00020273,2]
[337799077,1726123855800,-988.25,0.00020273,2]
[337799078,1726123855810,-500.0,0.00020273,2]
[337799079,1726123855820,-375.756997,0.00020273,2]
[337799080,1726123855829,-375.756997,0.00020273,2]
[337799081,1726123855839,-818.89,0.00020273,2]
[337799082,1726123855848,-151.0,0.00020273,2]
[337799083,1726123855858,-1126.63,0.00020273,2]
[337799084,1726123855867,-230.11428462,0.00020273,2]
[337799085,1726123855876,-500.0,0.00020273,2]
[337799086,1726123855886,-977.81,0.00020273,2]
[337799087,1726123855895,-500.0,0.00020273,2]
[337799088,1726123855905,-500.0,0.00020273,2]
[337799089,1726123855914,-500.0,0.00020273,2]
[337799090,1726123855924,-1576.0,0.00020273,2]
[337799091,1726123855933,-563.69,0.00020273,2]
[337799092,1726123855943,-500.0,0.00020273,2]
[337799093,1726123855952,-752.1,0.00020273,2]
[337799094,1726123855962,-500.0,0.00020273,2]
[337799095,1726123855971,-500.0,0.00020273,2]
[337799096,1726123855980,-500.0,0.00020273,2]
[337799097,1726123855993,-500.0,0.00020273,2]
[337799098,1726123856002,-500.0,0.00020273,2]
[337799099,1726123856011,-895.59,0.00020273,2]
[337799100,1726123856021,-500.0,0.00020273,2]
[337799101,1726123856032,-691.07,0.00020273,2]
[337799102,1726123856041,-786.8,0.00020273,2]
[337799103,1726123856051,-975.76,0.00020273,2]
[337799104,1726123856061,-500.0,0.00020273,2]
[337799105,1726123856072,-806.09,0.00020273,2]
[337799106,1726123856082,-423.09098,0.00020273,2]
[337799107,1726123856092,-729.84,0.00020273,2]
[337799108,1726123856102,-770.21,0.00020273,2]
[337799109,1726123856111,-500.0,0.00020273,2]
[337799110,1726123856122,-8674.94,0.00020273,2]
[337799111,1726123856132,-848.3,0.00020273,2]
[337799112,1726123856142,-423.09098,0.00020273,2]
[337799113,1726123856151,-500.0,0.00020273,2]
[337799114,1726123856161,-866.1,0.00020273,2]
[337799115,1726123856170,-689.98,0.00020273,2]
[337799116,1726123856180,-631.72,0.00020273,2]
[337799117,1726123856190,-276.254388,0.00020273,2]
[337799118,1726123856199,-151.0,0.00020273,2]
[337799119,1726123856208,-500.0,0.00020273,2]
[337799120,1726123856218,-582.27,0.00020273,2]
[337799121,1726123856227,-560.54,0.00020273,2]
[337799122,1726123856236,-276.254388,0.00020273,2]
[337799123,1726123856246,-500.0,0.00020273,2]
[337799124,1726123856256,-1022.59,0.00020273,2]
[337799125,1726123856265,-10023.64,0.00020273,2]
[337799126,1726123856275,-1077.78,0.00020273,2]
[337799127,1726123856284,-500.0,0.00020273,2]
[337799128,1726123856294,-923.85,0.00020273,2]
[337799129,1726123856304,-573.18,0.00020273,2]
[337799130,1726123856315,-8715.78,0.00020273,2]
[337799131,1726123856326,-602.78,0.00020273,2]
[337799132,1726123856337,-1098.43,0.00020273,2]
[337799133,1726123856347,-307.26636869,0.00020273,2]
[337799134,1726123856358,-11078.48,0.00020273,2]
[337799135,1726123856367,-545.11,0.00020273,2]
[337799136,1726123856377,-764.18,0.00020273,2]
[337799137,1726123856386,-922.67,0.00020273,2]
[337799138,1726123856395,-500.0,0.00020273,2]
[337799139,1726123856405,-1502.966318,0.00020273,2]
[337799140,1726123856414,-1502.966318,0.00020273,2]
[337799141,1726123856423,-208.80754466,0.00020273,2]
[337799142,1726123856432,-4848.47,0.00020273,2]
[337799143,1726123856442,-879.2,0.00020273,2]
[337799144,1726123856451,-500.0,0.00020273,2]
[337799145,1726123856461,-613.74,0.00020273,2]
[337799146,1726123856471,-335.499392,0.00020273,2]
[337799147,1726123856481,-335.499392,0.00020273,2]
[337799148,1726123856490,-313.64636143,0.00020273,2]
[337799149,1726123856500,-500.0,0.00020273,2]
[337799150,1726123856509,-877.77,0.00020273,2]
[337799151,1726123856518,-561.4,0.00020273,2]
[337799152,1726123856530,-515.82,0.00020273,2]
[337799153,1726123856540,-602.7,0.00020273,2]
[337799154,1726123856551,-153.0,0.00020274,2]
[337799155,1726123856562,-153.0,0.00020274,2]
[337799156,1726123856573,-153.0,0.00020274,2]
[337799157,1726123856584,-153.0,0.00020274,2]
[337799158,1726123856594,-153.0,0.00020274,2]
[337799159,1726123856605,-153.0,0.00020274,2]
[337799160,1726123856615,-153.0,0.00020274,2]
[337799161,1726123856627,-3400.27410895,0.00020275,30]
[337799162,1726123856636,-60042.86,0.000203,2]
[337799163,1726123856646,-151.0,0.000203,2]
[337799164,1726123856658,-501.80812817,0.00020331,2]
[337799165,1726123856669,-61404.31400001,0.00020377,2]
[337799166,1726123856679,-155.04103,0.00020377,2]
[337799167,1726123856689,-534.8,0.00020547,2]